[Event "Early-Titled-Tuesday-Blitz-January-23-2024"]
[Site "Chess.com"]
[Date "2024.01.23"]
[Round "2"]
[White "GiorgianBarbosa"]
[Black "ChessboArt"]
[Result "0-1"]
[WhiteElo "2452"]
[BlackElo "2186"]
[TimeControl "180+1"]
[EndTime "8:17:01 PST"]
[Termination "ChessboArt won by checkmate"]

1. e4 {[%clk 0:02:59.8]} 1... c6 {[%clk 0:02:59.1]} 2. c4 {[%clk 0:02:56.8]}
2... d5 {[%clk 0:03:00]} 3. cxd5 {[%clk 0:02:57.5]} 3... cxd5 {[%clk 0:03:00.9]}
4. exd5 {[%clk 0:02:58.3]} 4... Nf6 {[%clk 0:03:01]} 5. Nc3 {[%clk 0:02:59.2]}
5... Nxd5 {[%clk 0:03:01.5]} 6. Bc4 {[%clk 0:02:59.7]} 6... e6 {[%clk
0:02:58.7]} 7. Nf3 {[%clk 0:02:58.8]} 7... Nc6 {[%clk 0:02:58.3]} 8. O-O {[%clk
0:02:59.1]} 8... Be7 {[%clk 0:02:58.5]} 9. d4 {[%clk 0:02:59]} 9... O-O {[%clk
0:02:58.5]} 10. Bxd5 {[%clk 0:02:57.6]} 10... exd5 {[%clk 0:02:58.3]} 11. h3
{[%clk 0:02:56.8]} 11... Bf5 {[%clk 0:02:48.4]} 12. Re1 {[%clk 0:02:55.9]} 12...
Bf6 {[%clk 0:02:37.8]} 13. Bf4 {[%clk 0:02:56]} 13... Rc8 {[%clk 0:02:26.4]} 14.
Ne5 {[%clk 0:02:52.1]} 14... h6 {[%clk 0:02:18.1]} 15. Qd2 {[%clk 0:02:33.1]}
15... Re8 {[%clk 0:01:42.4]} 16. Nxc6 {[%clk 0:02:17.4]} 16... bxc6 {[%clk
0:01:43.3]} 17. Be5 {[%clk 0:02:14.8]} 17... Bxe5 {[%clk 0:01:29.7]} 18. dxe5
{[%clk 0:02:15.6]} 18... d4 {[%clk 0:01:15.6]} 19. Na4 {[%clk 0:02:01.1]} 19...
c5 {[%clk 0:01:11]} 20. b3 {[%clk 0:01:58.1]} 20... Qd5 {[%clk 0:00:59.2]} 21.
Qf4 {[%clk 0:01:51.8]} 21... Bd3 {[%clk 0:00:31.9]} 22. Rad1 {[%clk 0:01:49.5]}
22... Bb5 {[%clk 0:00:31.9]} 23. Nb2 {[%clk 0:01:49.8]} 23... Re6 {[%clk
0:00:27.5]} 24. Re3 {[%clk 0:01:46.8]} 24... Rce8 {[%clk 0:00:23.1]} 25. Rg3
{[%clk 0:01:46.6]} 25... Qxe5 {[%clk 0:00:14.7]} 26. Qg4 {[%clk 0:01:47]} 26...
Rg6 {[%clk 0:00:07.1]} 27. Qf3 {[%clk 0:01:47.2]} 27... Rxg3 {[%clk 0:00:06.8]}
28. Qxg3 {[%clk 0:01:48.1]} 28... Qxg3 {[%clk 0:00:06.8]} 29. fxg3 {[%clk
0:01:48.5]} 29... Re2 {[%clk 0:00:07.2]} 30. Rb1 {[%clk 0:01:44]} 30... d3
{[%clk 0:00:06.2]} 31. a4 {[%clk 0:01:44.1]} 31... Ba6 {[%clk 0:00:06]} 32. Rd1
{[%clk 0:01:23.1]} 32... Rxb2 {[%clk 0:00:05.6]} 33. Kh2 {[%clk 0:01:22.8]}
33... Bb7 {[%clk 0:00:05.8]} 34. g4 {[%clk 0:01:23.7]} 34... Rxg2+ {[%clk
0:00:06]} 35. Kh1 {[%clk 0:01:24.6]} 35... Rd2+ {[%clk 0:00:05.3]} 36. Kg1
{[%clk 0:01:25.5]} 36... Rxd1+ {[%clk 0:00:06.2]} 37. Kf2 {[%clk 0:01:26]} 37...
Rd2+ {[%clk 0:00:07.1]} 38. Ke3 {[%clk 0:01:25.8]} 38... Re2+ {[%clk 0:00:08]}
39. Kxd3 {[%clk 0:01:26.6]} 39... Rh2 {[%clk 0:00:06.7]} 40. Kc4 {[%clk
0:01:27.5]} 40... Rxh3 {[%clk 0:00:07.4]} 41. Kxc5 {[%clk 0:01:28.4]} 41... Rxb3
{[%clk 0:00:05.9]} 42. a5 {[%clk 0:01:28.5]} 42... Rb2 {[%clk 0:00:06.2]} 43.
Kd6 {[%clk 0:01:29.4]} 43... a6 {[%clk 0:00:06.6]} 44. Kc7 {[%clk 0:01:30.3]}
44... Rb5 {[%clk 0:00:07]} 45. Kb8 {[%clk 0:01:31.2]} 45... Rxa5 {[%clk
0:00:07.8]} 46. Ka7 {[%clk 0:01:31.9]} 46... Ra4 {[%clk 0:00:08.7]} 47. Kb6
{[%clk 0:01:32.4]} 47... Rxg4 {[%clk 0:00:09.6]} 48. Kxb7 {[%clk 0:01:33.2]}
48... Rg5 {[%clk 0:00:10.3]} 49. Kxa6 {[%clk 0:01:34.1]} 49... h5 {[%clk
0:00:11.2]} 50. Kb6 {[%clk 0:01:34.8]} 50... h4 {[%clk 0:00:12.1]} 51. Kc6
{[%clk 0:01:35.7]} 51... h3 {[%clk 0:00:12.9]} 52. Kd6 {[%clk 0:01:36.6]} 52...
f6 {[%clk 0:00:13.8]} 53. Ke7 {[%clk 0:01:37.5]} 53... h2 {[%clk 0:00:14.1]} 54.
Kd6 {[%clk 0:01:38.4]} 54... h1=Q {[%clk 0:00:14]} 55. Ke7 {[%clk 0:01:34.6]}
55... Qb7+ {[%clk 0:00:13.3]} 56. Ke8 {[%clk 0:01:34.6]} 56... Re5+ {[%clk
0:00:12.7]} 57. Kd8 {[%clk 0:01:35.5]} 57... Rd5+ {[%clk 0:00:13]} 58. Ke8
{[%clk 0:01:35.5]} 58... Qd7# {[%clk 0:00:13.1]} 0-1

[Event "Early-Titled-Tuesday-Blitz-January-23-2024"]
[Site "Chess.com"]
[Date "2024.01.23"]
[Round "2"]
[White "ChessLebaneseSalah"]
[Black "GeorgiosSouleidis"]
[Result "1-0"]
[WhiteElo "2389"]
[BlackElo "2646"]
[TimeControl "180+1"]
[EndTime "8:17:03 PST"]
[Termination "ChessLebaneseSalah won by checkmate"]

1. e4 {[%clk 0:03:00.9]} 1... c5 {[%clk 0:02:59.7]} 2. Nf3 {[%clk 0:03:00.9]}
2... e6 {[%clk 0:03:00.2]} 3. c3 {[%clk 0:02:59.9]} 3... d5 {[%clk 0:03:00.2]}
4. e5 {[%clk 0:02:58]} 4... d4 {[%clk 0:02:59.8]} 5. Na3 {[%clk 0:02:56.7]} 5...
Ne7 {[%clk 0:02:50.2]} 6. cxd4 {[%clk 0:02:37.5]} 6... cxd4 {[%clk 0:02:51.1]}
7. Bb5+ {[%clk 0:02:29.5]} 7... Nec6 {[%clk 0:02:43.9]} 8. Qa4 {[%clk
0:02:25.2]} 8... Bd7 {[%clk 0:02:37]} 9. Nc4 {[%clk 0:02:09.8]} 9... Be7 {[%clk
0:02:24.1]} 10. Nd6+ {[%clk 0:02:07.8]} 10... Bxd6 {[%clk 0:02:23.3]} 11. exd6
{[%clk 0:02:08.7]} 11... e5 {[%clk 0:02:12.3]} 12. O-O {[%clk 0:02:04.8]} 12...
O-O {[%clk 0:02:11.9]} 13. Re1 {[%clk 0:02:02.2]} 13... Qf6 {[%clk 0:02:02.1]}
14. Qa3 {[%clk 0:01:55.4]} 14... Re8 {[%clk 0:01:54]} 15. Bd3 {[%clk 0:01:51.5]}
15... Bf5 {[%clk 0:01:37.5]} 16. Bxf5 {[%clk 0:01:46]} 16... Qxf5 {[%clk
0:01:37.6]} 17. d3 {[%clk 0:01:46.4]} 17... Nd7 {[%clk 0:01:35.9]} 18. Bd2
{[%clk 0:01:42.4]} 18... Rad8 {[%clk 0:01:18.7]} 19. Ng5 {[%clk 0:01:27.6]}
19... Nf6 {[%clk 0:01:10.8]} 20. Ne4 {[%clk 0:01:21.3]} 20... Nxe4 {[%clk
0:01:10.1]} 21. Rxe4 {[%clk 0:01:18.3]} 21... Qf6 {[%clk 0:00:59.5]} 22. f4
{[%clk 0:01:07.3]} 22... exf4 {[%clk 0:00:51.9]} 23. Rae1 {[%clk 0:00:50.3]}
23... Rxe4 {[%clk 0:00:48.3]} 24. Rxe4 {[%clk 0:00:51.2]} 24... g5 {[%clk
0:00:26.1]} 25. d7 {[%clk 0:00:47.5]} 25... Rxd7 {[%clk 0:00:05.4]} 26. Re8+
{[%clk 0:00:47.7]} 26... Kg7 {[%clk 0:00:05.8]} 27. Qf8+ {[%clk 0:00:47.1]}
27... Kg6 {[%clk 0:00:06.4]} 28. h4 {[%clk 0:00:40.8]} 28... gxh4 {[%clk
0:00:06.1]} 29. Re4 {[%clk 0:00:28.9]} 29... f3 {[%clk 0:00:03.9]} 30. Qg8+
{[%clk 0:00:26.5]} 30... Kf5 {[%clk 0:00:03.2]} 31. Qg4# {[%clk 0:00:25.9]} 1-0

[Event "Early-Titled-Tuesday-Blitz-January-23-2024"]
[Site "Chess.com"]
[Date "2024.01.23"]
[Round "2"]
[White "NLLO777"]
[Black "LaPiToB"]
[Result "1-0"]
[WhiteElo "2538"]
[BlackElo "2324"]
[TimeControl "180+1"]
[EndTime "8:17:03 PST"]
[Termination "NLLO777 won by resignation"]

1. Nf3 {[%clk 0:03:00.9]} 1... Nf6 {[%clk 0:02:57]} 2. g3 {[%clk 0:03:00.5]}
2... d5 {[%clk 0:02:55.4]} 3. Bg2 {[%clk 0:03:01.4]} 3... c5 {[%clk 0:02:55.1]}
4. O-O {[%clk 0:03:01.3]} 4... Nc6 {[%clk 0:02:55.4]} 5. c4 {[%clk 0:03:01.8]}
5... e6 {[%clk 0:02:55.3]} 6. cxd5 {[%clk 0:03:01.8]} 6... exd5 {[%clk
0:02:52.3]} 7. d4 {[%clk 0:03:02.3]} 7... Be7 {[%clk 0:02:47.6]} 8. Nc3 {[%clk
0:03:01.5]} 8... O-O {[%clk 0:02:46.1]} 9. b3 {[%clk 0:03:00.1]} 9... Bf5 {[%clk
0:02:40.6]} 10. Bb2 {[%clk 0:02:59.8]} 10... Rc8 {[%clk 0:02:38.8]} 11. Rc1
{[%clk 0:02:59.5]} 11... Re8 {[%clk 0:02:26.8]} 12. dxc5 {[%clk 0:02:56.4]}
12... Bxc5 {[%clk 0:02:25.5]} 13. Nb5 {[%clk 0:02:52.9]} 13... Bb6 {[%clk
0:02:19.1]} 14. Nbd4 {[%clk 0:02:50.4]} 14... Bg6 {[%clk 0:02:09.1]} 15. e3
{[%clk 0:02:48.1]} 15... Ne4 {[%clk 0:01:44.9]} 16. Qe2 {[%clk 0:02:43]} 16...
Nc5 {[%clk 0:01:35.9]} 17. Rfd1 {[%clk 0:02:41.3]} 17... Nb4 {[%clk 0:01:33.2]}
18. Ba1 {[%clk 0:02:18.5]} 18... Nbd3 {[%clk 0:01:24.4]} 19. Rc3 {[%clk
0:02:13.5]} 19... Ba5 {[%clk 0:00:57.9]} 20. Rc2 {[%clk 0:01:58.6]} 20... Ne5
{[%clk 0:00:42.3]} 21. Nxe5 {[%clk 0:01:46.5]} 21... Bxc2 {[%clk 0:00:41.6]} 22.
Nxc2 {[%clk 0:01:47]} 22... Qb6 {[%clk 0:00:16]} 23. Nd3 {[%clk 0:01:25.6]}
23... Ne4 {[%clk 0:00:14.2]} 24. Nf4 {[%clk 0:01:20.6]} 24... Bc3 {[%clk
0:00:12.3]} 25. Nxd5 {[%clk 0:01:19.3]} 25... Qa5 {[%clk 0:00:10]} 26. Bxe4
{[%clk 0:01:17.5]} 26... Bxa1 {[%clk 0:00:09.9]} 27. Bf3 {[%clk 0:00:55.3]}
27... Be5 {[%clk 0:00:08.1]} 28. Nd4 {[%clk 0:00:48.6]} 28... h6 {[%clk
0:00:06.4]} 29. h4 {[%clk 0:00:48.5]} 29... Red8 {[%clk 0:00:06.2]} 30. Ne7+
{[%clk 0:00:44.6]} 30... Kf8 {[%clk 0:00:05.7]} 31. Nxc8 {[%clk 0:00:45.5]}
31... Rxc8 {[%clk 0:00:05.6]} 32. a4 {[%clk 0:00:42.6]} 32... Qc3 {[%clk
0:00:05]} 33. Qb5 {[%clk 0:00:40.6]} 33... Bxd4 {[%clk 0:00:04.3]} 34. Rxd4
{[%clk 0:00:40.4]} 34... a6 {[%clk 0:00:03.2]} 35. Qb4+ {[%clk 0:00:39.4]} 35...
Qxb4 {[%clk 0:00:03.1]} 36. Rxb4 {[%clk 0:00:40.3]} 1-0

[Event "Early-Titled-Tuesday-Blitz-January-23-2024"]
[Site "Chess.com"]
[Date "2024.01.23"]
[Round "2"]
[White "knightinshiningarmour16"]
[Black "dcremisi"]
[Result "1/2-1/2"]
[WhiteElo "2214"]
[BlackElo "2659"]
[TimeControl "180+1"]
[EndTime "8:17:04 PST"]
[Termination "Game drawn by repetition"]

1. e4 {[%clk 0:02:58.8]} 1... e6 {[%clk 0:02:59.7]} 2. d4 {[%clk 0:02:56.9]}
2... d5 {[%clk 0:02:59.7]} 3. exd5 {[%clk 0:02:56.6]} 3... exd5 {[%clk
0:02:59.8]} 4. Bd3 {[%clk 0:02:55.7]} 4... Nc6 {[%clk 0:02:59.6]} 5. c3 {[%clk
0:02:52.4]} 5... Bd6 {[%clk 0:02:59.6]} 6. Nf3 {[%clk 0:02:51.4]} 6... Nge7
{[%clk 0:02:59.7]} 7. Bg5 {[%clk 0:02:49.8]} 7... Bg4 {[%clk 0:02:58.1]} 8. Nbd2
{[%clk 0:02:48.9]} 8... Qd7 {[%clk 0:02:58.1]} 9. Qc2 {[%clk 0:02:47.3]} 9... h6
{[%clk 0:02:54.9]} 10. Bh4 {[%clk 0:02:46.8]} 10... O-O-O {[%clk 0:02:54.1]} 11.
O-O-O {[%clk 0:02:46]} 11... Rde8 {[%clk 0:02:50.2]} 12. Rde1 {[%clk 0:02:45.2]}
12... Nf5 {[%clk 0:02:49.4]} 13. Bg3 {[%clk 0:02:41.6]} 13... Nxg3 {[%clk
0:02:48.7]} 14. hxg3 {[%clk 0:02:42.3]} 14... Rxe1+ {[%clk 0:02:47.7]} 15. Rxe1
{[%clk 0:02:41.8]} 15... Kb8 {[%clk 0:02:46.6]} 16. Kb1 {[%clk 0:02:41.4]} 16...
Re8 {[%clk 0:02:46.2]} 17. Qd1 {[%clk 0:02:18.6]} 17... a6 {[%clk 0:02:44.3]}
18. Rxe8+ {[%clk 0:02:18.1]} 18... Qxe8 {[%clk 0:02:44.2]} 19. Qe2 {[%clk
0:02:17.6]} 19... Qxe2 {[%clk 0:02:41]} 20. Bxe2 {[%clk 0:02:18.4]} 20... Kc8
{[%clk 0:02:41.4]} 21. Bd3 {[%clk 0:02:17.6]} 21... Kd8 {[%clk 0:02:41]} 22. Kc2
{[%clk 0:02:17.4]} 22... Ke7 {[%clk 0:02:40.9]} 23. Nh2 {[%clk 0:02:15.7]} 23...
Bd7 {[%clk 0:02:40.6]} 24. Nhf3 {[%clk 0:02:13.8]} 24... g5 {[%clk 0:02:40.4]}
25. Nf1 {[%clk 0:02:11.2]} 25... f5 {[%clk 0:02:40.3]} 26. Ne3 {[%clk
0:02:10.5]} 26... Be6 {[%clk 0:02:40.3]} 27. Bxf5 {[%clk 0:02:04]} 27... Nd8
{[%clk 0:02:36.4]} 28. g4 {[%clk 0:01:53.5]} 28... Bg8 {[%clk 0:02:34.8]} 29.
Kd3 {[%clk 0:01:51.6]} 29... c6 {[%clk 0:02:34.5]} 30. g3 {[%clk 0:01:44]} 30...
b6 {[%clk 0:02:26.9]} 31. Ne5 {[%clk 0:01:43.6]} 31... Bxe5 {[%clk 0:02:17.8]}
32. dxe5 {[%clk 0:01:44.4]} 32... c5 {[%clk 0:02:18.1]} 33. f4 {[%clk
0:01:44.2]} 33... c4+ {[%clk 0:02:09.9]} 34. Ke2 {[%clk 0:01:38.4]} 34... Nc6
{[%clk 0:02:10.2]} 35. Nc2 {[%clk 0:01:35.8]} 35... Be6 {[%clk 0:02:08.2]} 36.
Bxe6 {[%clk 0:01:32.1]} 36... Kxe6 {[%clk 0:02:04.7]} 37. Nd4+ {[%clk
0:01:30.8]} 37... Nxd4+ {[%clk 0:02:04.6]} 38. cxd4 {[%clk 0:01:31.7]} 38... b5
{[%clk 0:01:52.6]} 39. b4 {[%clk 0:01:15]} 39... Ke7 {[%clk 0:01:30.9]} 40. Ke3
{[%clk 0:01:08.4]} 40... Kf7 {[%clk 0:01:30.9]} 41. Kd2 {[%clk 0:01:06.6]} 41...
Ke7 {[%clk 0:01:30.9]} 42. Ke3 {[%clk 0:01:06]} 42... Kf7 {[%clk 0:01:31]} 43.
f5 {[%clk 0:01:04.6]} 43... Ke7 {[%clk 0:01:30.8]} 44. Kd2 {[%clk 0:01:04]}
44... Kd7 {[%clk 0:01:30.9]} 45. Kc3 {[%clk 0:01:00.5]} 45... Ke7 {[%clk
0:01:30.5]} 46. Kb2 {[%clk 0:00:59.3]} 46... Kd7 {[%clk 0:01:30.5]} 47. a4
{[%clk 0:00:58.2]} 47... bxa4 {[%clk 0:01:21]} 48. Ka3 {[%clk 0:00:57.2]} 48...
c3 {[%clk 0:01:19]} 49. e6+ {[%clk 0:00:49.2]} 49... Ke7 {[%clk 0:01:15.6]} 50.
Ka2 {[%clk 0:00:48.7]} 50... Kd6 {[%clk 0:01:12.7]} 51. Ka3 {[%clk 0:00:48]}
51... Ke7 {[%clk 0:01:07]} 52. Ka2 {[%clk 0:00:46.8]} 52... Kf6 {[%clk
0:01:06.4]} 53. Ka3 {[%clk 0:00:46.4]} 53... Ke7 {[%clk 0:01:01.4]} 1/2-1/2

[Event "Early-Titled-Tuesday-Blitz-January-23-2024"]
[Site "Chess.com"]
[Date "2024.01.23"]
[Round "2"]
[White "bazar-wokzal"]
[Black "MikaelyanArman"]
[Result "0-1"]
[WhiteElo "2561"]
[BlackElo "2842"]
[TimeControl "180+1"]
[EndTime "8:17:07 PST"]
[Termination "MikaelyanArman won by resignation"]

1. e4 {[%clk 0:03:00.9]} 1... c5 {[%clk 0:02:58.6]} 2. c3 {[%clk 0:03:00.9]}
2... Nf6 {[%clk 0:02:54.5]} 3. e5 {[%clk 0:03:01]} 3... Nd5 {[%clk 0:02:54.9]}
4. d4 {[%clk 0:03:01.7]} 4... cxd4 {[%clk 0:02:55.4]} 5. cxd4 {[%clk 0:03:02.6]}
5... Nc6 {[%clk 0:02:54.7]} 6. Nc3 {[%clk 0:03:02.4]} 6... Nxc3 {[%clk
0:02:52.3]} 7. bxc3 {[%clk 0:03:03.3]} 7... d6 {[%clk 0:02:50.4]} 8. f4 {[%clk
0:03:02.8]} 8... dxe5 {[%clk 0:02:40.6]} 9. fxe5 {[%clk 0:03:02.7]} 9... Bf5
{[%clk 0:02:14.4]} 10. Nf3 {[%clk 0:03:02.3]} 10... e6 {[%clk 0:02:14.6]} 11.
Bd3 {[%clk 0:03:02.5]} 11... Bxd3 {[%clk 0:02:11.7]} 12. Qxd3 {[%clk 0:03:02.8]}
12... Be7 {[%clk 0:02:12.1]} 13. O-O {[%clk 0:03:02.5]} 13... O-O {[%clk
0:02:05.3]} 14. Be3 {[%clk 0:02:50.2]} 14... Rc8 {[%clk 0:02:01.7]} 15. Rf2
{[%clk 0:02:50.3]} 15... Na5 {[%clk 0:01:59.7]} 16. Raf1 {[%clk 0:02:49.7]}
16... Nc4 {[%clk 0:01:56.7]} 17. Bc1 {[%clk 0:02:42.4]} 17... b5 {[%clk
0:01:53.3]} 18. Nd2 {[%clk 0:02:22.5]} 18... Nxe5 {[%clk 0:01:44.6]} 19. Qxb5
{[%clk 0:02:15.2]} 19... Ng4 {[%clk 0:01:41.9]} 20. Rf3 {[%clk 0:02:08.2]} 20...
Rxc3 {[%clk 0:01:30.5]} 21. Rf4 {[%clk 0:00:52.7]} 21... Nf6 {[%clk 0:01:09.5]}
22. Nf3 {[%clk 0:00:45.1]} 22... Qc7 {[%clk 0:00:55.1]} 23. Qb2 {[%clk
0:00:36.2]} 23... Rc2 {[%clk 0:00:53.1]} 24. Qa1 {[%clk 0:00:30.1]} 24... Nd5
{[%clk 0:00:47.5]} 25. Rg4 {[%clk 0:00:29.4]} 25... Nf6 {[%clk 0:00:43.1]} 26.
Rg3 {[%clk 0:00:26.3]} 26... Bd6 {[%clk 0:00:30.4]} 27. Ne5 {[%clk 0:00:19.8]}
27... Bxe5 {[%clk 0:00:28.7]} 28. dxe5 {[%clk 0:00:19.7]} 28... Ne4 {[%clk
0:00:29.1]} 29. Rh3 {[%clk 0:00:15.2]} 29... Qc4 {[%clk 0:00:21.8]} 30. Bf4
{[%clk 0:00:12.5]} 30... Qe2 {[%clk 0:00:20.2]} 0-1

[Event "Early-Titled-Tuesday-Blitz-January-23-2024"]
[Site "Chess.com"]
[Date "2024.01.23"]
[Round "2"]
[White "KnobbedHornbill"]
[Black "GoltsevDmitry2000"]
[Result "1-0"]
[WhiteElo "2574"]
[BlackElo "2822"]
[TimeControl "180+1"]
[EndTime "8:17:08 PST"]
[Termination "KnobbedHornbill won by checkmate"]

1. d4 {[%clk 0:03:00.9]} 1... e6 {[%clk 0:02:57.7]} 2. c4 {[%clk 0:03:01.5]}
2... d5 {[%clk 0:02:58.2]} 3. Nf3 {[%clk 0:03:01.5]} 3... dxc4 {[%clk
0:02:56.2]} 4. e4 {[%clk 0:03:00.1]} 4... c5 {[%clk 0:02:56.4]} 5. Bxc4 {[%clk
0:02:55.6]} 5... cxd4 {[%clk 0:02:50.8]} 6. Nxd4 {[%clk 0:02:56.5]} 6... a6
{[%clk 0:02:50.9]} 7. O-O {[%clk 0:02:52.4]} 7... Nf6 {[%clk 0:02:47.5]} 8. e5
{[%clk 0:02:35.8]} 8... Nd5 {[%clk 0:02:45]} 9. Nc3 {[%clk 0:02:28.6]} 9... Nxc3
{[%clk 0:02:44.2]} 10. bxc3 {[%clk 0:02:29.5]} 10... b5 {[%clk 0:02:44.1]} 11.
Bb3 {[%clk 0:02:27.6]} 11... Bb7 {[%clk 0:02:44.1]} 12. Re1 {[%clk 0:02:22.6]}
12... Be7 {[%clk 0:02:42.2]} 13. Qg4 {[%clk 0:02:22.5]} 13... g6 {[%clk
0:02:42.3]} 14. Bh6 {[%clk 0:02:21.6]} 14... Bd5 {[%clk 0:02:39.6]} 15. Rad1
{[%clk 0:02:20.4]} 15... Bxb3 {[%clk 0:02:32.3]} 16. axb3 {[%clk 0:02:18.1]}
16... Qc8 {[%clk 0:02:31.4]} 17. Re3 {[%clk 0:01:52.8]} 17... Nc6 {[%clk
0:02:29.2]} 18. h4 {[%clk 0:01:45.3]} 18... Qc7 {[%clk 0:01:58.2]} 19. Nxe6
{[%clk 0:01:34.1]} 19... fxe6 {[%clk 0:01:59.1]} 20. Qxe6 {[%clk 0:01:34.3]}
20... Rd8 {[%clk 0:01:57.6]} 21. Rd6 {[%clk 0:01:30.1]} 21... Nb8 {[%clk
0:01:23.2]} 22. Bg7 {[%clk 0:00:45.5]} 22... Qc8 {[%clk 0:00:43.5]} 23. Rxd8+
{[%clk 0:00:37.7]} 23... Qxd8 {[%clk 0:00:31.5]} 24. Bxh8 {[%clk 0:00:34.5]}
24... Qd7 {[%clk 0:00:21]} 25. Qg8+ {[%clk 0:00:31.7]} 25... Bf8 {[%clk
0:00:20.1]} 26. e6 {[%clk 0:00:28]} 26... Qe7 {[%clk 0:00:17.7]} 27. Rf3 {[%clk
0:00:27.1]} 27... Nc6 {[%clk 0:00:17.6]} 28. Bg7 {[%clk 0:00:26.6]} 28... Qxe6
{[%clk 0:00:07.9]} 29. Qxe6+ {[%clk 0:00:24.9]} 29... Be7 {[%clk 0:00:06.9]} 30.
Rf8# {[%clk 0:00:23.9]} 1-0

[Event "Early-Titled-Tuesday-Blitz-January-23-2024"]
[Site "Chess.com"]
[Date "2024.01.23"]
[Round "2"]
[White "AyMitecK"]
[Black "rasmussvane"]
[Result "0-1"]
[WhiteElo "2624"]
[BlackElo "2997"]
[TimeControl "180+1"]
[EndTime "8:17:09 PST"]
[Termination "rasmussvane won on time"]

1. e4 {[%clk 0:03:00.9]} 1... c6 {[%clk 0:02:59.5]} 2. Ne2 {[%clk 0:03:00.4]}
2... d5 {[%clk 0:02:59.2]} 3. e5 {[%clk 0:03:00.9]} 3... d4 {[%clk 0:02:58.8]}
4. b4 {[%clk 0:03:00.6]} 4... a5 {[%clk 0:02:58.8]} 5. Bb2 {[%clk 0:02:57.1]}
5... axb4 {[%clk 0:02:53.4]} 6. a3 {[%clk 0:02:50.9]} 6... d3 {[%clk 0:02:28]}
7. cxd3 {[%clk 0:02:37]} 7... e6 {[%clk 0:02:19.9]} 8. Ng3 {[%clk 0:02:21.4]}
8... Nd7 {[%clk 0:02:06.8]} 9. Ne4 {[%clk 0:02:16]} 9... Nh6 {[%clk 0:01:57.9]}
10. g4 {[%clk 0:01:53.1]} 10... Qc7 {[%clk 0:01:50.6]} 11. Nd6+ {[%clk
0:01:45.7]} 11... Bxd6 {[%clk 0:01:28.9]} 12. exd6 {[%clk 0:01:46.6]} 12... Qxd6
{[%clk 0:01:29.8]} 13. Bxg7 {[%clk 0:01:45.1]} 13... Rg8 {[%clk 0:01:30.1]} 14.
Bxh6 {[%clk 0:01:01.6]} 14... Qe5+ {[%clk 0:01:28.7]} 15. Be3 {[%clk 0:01:00.5]}
15... Qxa1 {[%clk 0:01:27.9]} 16. axb4 {[%clk 0:01:00.6]} 16... Qb2 {[%clk
0:00:59.6]} 17. Bg2 {[%clk 0:00:44.4]} 17... Ne5 {[%clk 0:00:55.2]} 18. O-O
{[%clk 0:00:41.9]} 18... Nxg4 {[%clk 0:00:50.1]} 19. Nc3 {[%clk 0:00:38.1]}
19... Qxb4 {[%clk 0:00:45.5]} 20. Ne4 {[%clk 0:00:27]} 20... f5 {[%clk
0:00:32.6]} 21. Bc5 {[%clk 0:00:25.7]} 21... Qa4 {[%clk 0:00:32.7]} 22. Nd6+
{[%clk 0:00:23.6]} 22... Kd7 {[%clk 0:00:33.1]} 23. h3 {[%clk 0:00:17.1]} 23...
Ne5 {[%clk 0:00:22.7]} 24. Qh5 {[%clk 0:00:12.8]} 24... Qh4 {[%clk 0:00:20.7]}
25. Qxh4 {[%clk 0:00:08.2]} 25... Nf3+ {[%clk 0:00:20.9]} 26. Kh1 {[%clk
0:00:07.7]} 26... Nxh4 {[%clk 0:00:21.8]} 27. Nf7 {[%clk 0:00:01.6]} 27... Rxg2
{[%clk 0:00:17.5]} 28. Ne5+ {[%clk 0:00:02.5]} 28... Ke8 {[%clk 0:00:17.8]} 0-1

[Event "Early-Titled-Tuesday-Blitz-January-23-2024"]
[Site "Chess.com"]
[Date "2024.01.23"]
[Round "2"]
[White "abelmat"]
[Black "JoliyRoger"]
[Result "0-1"]
[WhiteElo "2146"]
[BlackElo "2454"]
[TimeControl "180+1"]
[EndTime "8:17:09 PST"]
[Termination "JoliyRoger won by checkmate"]

1. d4 {[%clk 0:03:00.9]} 1... Nf6 {[%clk 0:02:59.6]} 2. c4 {[%clk 0:03:00]} 2...
e6 {[%clk 0:03:00.1]} 3. Nf3 {[%clk 0:03:00]} 3... c5 {[%clk 0:02:59.3]} 4. Nc3
{[%clk 0:02:58.8]} 4... cxd4 {[%clk 0:02:59.4]} 5. Nxd4 {[%clk 0:02:59.6]} 5...
d6 {[%clk 0:02:59.2]} 6. g3 {[%clk 0:02:58.8]} 6... a6 {[%clk 0:02:59.5]} 7. Bg2
{[%clk 0:02:58.8]} 7... Qc7 {[%clk 0:03:00]} 8. b3 {[%clk 0:02:57.6]} 8... Nc6
{[%clk 0:03:00.3]} 9. O-O {[%clk 0:02:56.7]} 9... Ne5 {[%clk 0:03:00.7]} 10. Bb2
{[%clk 0:02:46.7]} 10... Be7 {[%clk 0:03:00.8]} 11. Rc1 {[%clk 0:02:42.7]} 11...
O-O {[%clk 0:03:00.7]} 12. Ne4 {[%clk 0:02:39.6]} 12... Re8 {[%clk 0:02:59.8]}
13. h3 {[%clk 0:02:27]} 13... Rb8 {[%clk 0:02:59.3]} 14. Qd2 {[%clk 0:02:16]}
14... Bd7 {[%clk 0:02:51.1]} 15. Rfd1 {[%clk 0:02:14]} 15... Nxe4 {[%clk
0:02:41.2]} 16. Bxe4 {[%clk 0:02:12.1]} 16... Nc6 {[%clk 0:02:41.9]} 17. Qc2
{[%clk 0:01:43.3]} 17... h6 {[%clk 0:02:31.7]} 18. Bh7+ {[%clk 0:01:24.1]} 18...
Kf8 {[%clk 0:02:28.8]} 19. Be4 {[%clk 0:01:20.2]} 19... Rbc8 {[%clk 0:02:21.9]}
20. Bg2 {[%clk 0:01:17.8]} 20... Kg8 {[%clk 0:02:06.1]} 21. Be4 {[%clk
0:01:16.4]} 21... Red8 {[%clk 0:01:57.9]} 22. Bh7+ {[%clk 0:01:14.3]} 22... Kf8
{[%clk 0:01:58.4]} 23. Qe4 {[%clk 0:01:06.9]} 23... Nxd4 {[%clk 0:01:51.4]} 24.
Bxd4 {[%clk 0:00:57]} 24... e5 {[%clk 0:01:51.7]} 25. Bb2 {[%clk 0:00:45.8]}
25... Bc6 {[%clk 0:01:23.1]} 26. Qg4 {[%clk 0:00:40.1]} 26... Qa5 {[%clk
0:01:17.3]} 27. Bf5 {[%clk 0:00:31.5]} 27... Qxa2 {[%clk 0:01:08.9]} 28. Bc3
{[%clk 0:00:16]} 28... Qxb3 {[%clk 0:01:04.2]} 29. Bxc8 {[%clk 0:00:14.4]} 29...
h5 {[%clk 0:01:03.4]} 30. Qf5 {[%clk 0:00:12.8]} 30... g6 {[%clk 0:00:58.9]} 31.
Qd3 {[%clk 0:00:05.9]} 31... Rxc8 {[%clk 0:00:54.1]} 32. f4 {[%clk 0:00:02.9]}
32... Qb6+ {[%clk 0:00:48.3]} 33. Kh2 {[%clk 0:00:01.1]} 33... Qf2# {[%clk
0:00:47.1]} 0-1